[Event "Live Chess"]
[Site "Chess.com"]
[Date "2023.05.21"]
[Round "-"]
[White "Olisingapore"]
[Black "Bob2pen"]
[Result "1/2-1/2"]
[WhiteElo "1810"]
[BlackElo "1880"]
[TimeControl "300"]
[EndTime "8:25:51 PDT"]
[Termination "Game drawn by agreement"]

1. d4 {[%clk 0:04:55.9]} 1... Nf6 {[%clk 0:04:58.4]} 2. c4 {[%clk 0:04:55.4]}
2... c5 {[%clk 0:04:57.3]} 3. d5 {[%clk 0:04:51.6]} 3... e6 {[%clk 0:04:56.5]}
4. Nc3 {[%clk 0:04:49.5]} 4... exd5 {[%clk 0:04:55.6]} 5. cxd5 {[%clk
0:04:49.4]} 5... d6 {[%clk 0:04:54.9]} 6. g3 {[%clk 0:04:48.6]} 6... g6 {[%clk
0:04:54]} 7. Bg2 {[%clk 0:04:48.5]} 7... Bg7 {[%clk 0:04:53.3]} 8. Nf3 {[%clk
0:04:48.1]} 8... O-O {[%clk 0:04:52.3]} 9. O-O {[%clk 0:04:47.8]} 9... Re8
{[%clk 0:04:51]} 10. Bf4 {[%clk 0:04:47.3]} 10... a6 {[%clk 0:04:49.4]} 11. a4
{[%clk 0:04:46]} 11... Bg4 {[%clk 0:04:46.2]} 12. Re1 {[%clk 0:04:37.4]} 12...
Qe7 {[%clk 0:04:43.1]} 13. Nh4 {[%clk 0:04:23.2]} 13... Nh5 {[%clk 0:04:23.5]}
14. Bd2 {[%clk 0:04:16.5]} 14... Qd7 {[%clk 0:04:15]} 15. a5 {[%clk 0:04:12.3]}
15... Bh3 {[%clk 0:04:12.4]} 16. Na4 {[%clk 0:04:07.1]} 16... Bxg2 {[%clk
0:04:10.3]} 17. Kxg2 {[%clk 0:04:05.9]} 17... Qe7 {[%clk 0:04:04.9]} 18. Nb6
{[%clk 0:03:59.1]} 18... Ra7 {[%clk 0:04:03.4]} 19. e4 {[%clk 0:03:55.8]} 19...
Nd7 {[%clk 0:04:00.8]} 20. Qc2 {[%clk 0:03:49.2]} 20... Nxb6 {[%clk 0:03:52.4]}
21. axb6 {[%clk 0:03:49.1]} 21... Raa8 {[%clk 0:03:51.5]} 22. Nf3 {[%clk
0:03:44]} 22... Rac8 {[%clk 0:03:42.8]} 23. Bc3 {[%clk 0:03:39.6]} 23... Qd8
{[%clk 0:03:36.3]} 24. Ba5 {[%clk 0:03:34.9]} 24... Qf6 {[%clk 0:03:32.5]} 25.
Rab1 {[%clk 0:03:30.5]} 25... Qe7 {[%clk 0:03:21.7]} 26. Qd2 {[%clk 0:03:26]}
26... Nf6 {[%clk 0:03:19.1]} 27. Qd3 {[%clk 0:03:13.9]} 27... Nd7 {[%clk
0:03:16.3]} 28. Re3 {[%clk 0:03:00.3]} 28... Ne5 {[%clk 0:03:11.7]} 29. Nxe5
{[%clk 0:02:58.1]} 29... Qxe5 {[%clk 0:03:10.6]} 30. Bc3 {[%clk 0:02:48.4]}
30... Qe7 {[%clk 0:03:02.9]} 31. Bxg7 {[%clk 0:02:38]} 31... Kxg7 {[%clk
0:03:01.6]} 32. h4 {[%clk 0:02:36.2]} 32... Qf6 {[%clk 0:02:57.7]} 33. Qe2
{[%clk 0:02:31.5]} 33... Re7 {[%clk 0:02:44]} 34. Rc1 {[%clk 0:02:28.8]} 34...
Rce8 {[%clk 0:02:42.2]} 35. f3 {[%clk 0:02:11.9]} 35... Qe5 {[%clk 0:02:37.3]}
36. b4 {[%clk 0:02:03.6]} 36... cxb4 {[%clk 0:02:33.4]} 37. Rc7 {[%clk
0:02:02.5]} 37... Qd4 {[%clk 0:02:16.2]} 38. Rxe7 {[%clk 0:01:54.5]} 38... Rxe7
{[%clk 0:02:14.5]} 39. Rd3 {[%clk 0:01:52.3]} 39... Qxb6 {[%clk 0:02:12.8]} 40.
Qb2+ {[%clk 0:01:50]} 40... Kg8 {[%clk 0:02:08.4]} 41. Rc3 {[%clk 0:01:44.7]}
41... Rc7 {[%clk 0:02:00.9]} 42. Rxc7 {[%clk 0:01:42.5]} 42... Qxc7 {[%clk
0:01:59.5]} 43. Qxb4 {[%clk 0:01:42.1]} 43... h5 {[%clk 0:01:54.3]} 44. e5
{[%clk 0:01:34.6]} 44... dxe5 {[%clk 0:01:52.2]} 45. d6 {[%clk 0:01:32.5]} 45...
Qd7 {[%clk 0:01:51.3]} 46. Qc5 {[%clk 0:01:29.1]} 46... Kg7 {[%clk 0:01:42.7]}
47. Qc7 {[%clk 0:01:26.7]} 47... Qb5 {[%clk 0:01:29.7]} 48. d7 {[%clk
0:01:24.5]} 48... Qe2+ {[%clk 0:01:28.1]} 49. Kh3 {[%clk 0:01:20.4]} 49... Qf1+
{[%clk 0:01:26.4]} 50. Kh2 {[%clk 0:01:19.6]} 50... Qf2+ {[%clk 0:01:25.3]} 51.
Kh3 {[%clk 0:01:18.2]} 51... Qf1+ {[%clk 0:01:24.3]} 52. Kh2 {[%clk 0:01:17.7]}
52... Qf2+ {[%clk 0:01:23.3]} 1/2-1/2

[Event "Live Chess"]
[Site "Chess.com"]
[Date "2023.05.21"]
[Round "-"]
[White "lord_cll"]
[Black "ms_lilley"]
[Result "1-0"]
[WhiteElo "1207"]
[BlackElo "603"]
[TimeControl "300"]
[EndTime "8:25:51 PDT"]
[Termination "lord_cll won by checkmate"]

1. e4 {[%clk 0:04:58.6]} 1... e6 {[%clk 0:04:53.7]} 2. d4 {[%clk 0:04:54.3]}
2... d5 {[%clk 0:04:51.8]} 3. e5 {[%clk 0:04:53.3]} 3... Ne7 {[%clk 0:04:49.9]}
4. Nf3 {[%clk 0:04:51.7]} 4... h6 {[%clk 0:04:48.5]} 5. c3 {[%clk 0:04:48.6]}
5... Nf5 {[%clk 0:04:46.3]} 6. Nbd2 {[%clk 0:04:26.2]} 6... Nh4 {[%clk
0:04:42.9]} 7. g3 {[%clk 0:04:11.1]} 7... Nxf3+ {[%clk 0:04:39.5]} 8. Nxf3
{[%clk 0:04:10]} 8... a6 {[%clk 0:04:36]} 9. Bg2 {[%clk 0:04:06.5]} 9... b5
{[%clk 0:04:34]} 10. O-O {[%clk 0:03:57.2]} 10... c5 {[%clk 0:04:31.9]} 11. Ne1
{[%clk 0:03:50.7]} 11... c4 {[%clk 0:04:29.8]} 12. f4 {[%clk 0:03:49.2]} 12...
Nc6 {[%clk 0:04:27.6]} 13. Nc2 {[%clk 0:03:46.5]} 13... Be7 {[%clk 0:04:25.4]}
14. Ne3 {[%clk 0:03:45]} 14... O-O {[%clk 0:04:22.6]} 15. f5 {[%clk 0:03:43.3]}
15... exf5 {[%clk 0:04:05.1]} 16. Nxf5 {[%clk 0:03:40.7]} 16... Bxf5 {[%clk
0:04:03.1]} 17. Rxf5 {[%clk 0:03:39.2]} 17... f6 {[%clk 0:03:58.4]} 18. Qg4
{[%clk 0:03:34.6]} 18... Kf7 {[%clk 0:03:36.3]} 19. e6+ {[%clk 0:03:20.7]} 19...
Kxe6 {[%clk 0:03:32.4]} 20. Rxd5+ {[%clk 0:03:19.5]} 20... Kf7 {[%clk
0:03:28.4]} 21. Rxd8 {[%clk 0:03:11]} 21... Raxd8 {[%clk 0:03:22.5]} 22. Bxc6
{[%clk 0:03:08.9]} 22... Rd6 {[%clk 0:03:14.3]} 23. Bg2 {[%clk 0:02:56.5]} 23...
g5 {[%clk 0:03:11.1]} 24. Qh5+ {[%clk 0:02:48.6]} 24... Kg7 {[%clk 0:03:07.9]}
25. Bd2 {[%clk 0:02:46.8]} 25... f5 {[%clk 0:03:02.3]} 26. Re1 {[%clk
0:02:41.9]} 26... Bf6 {[%clk 0:02:48.2]} 27. h4 {[%clk 0:02:34.9]} 27... g4
{[%clk 0:02:45.6]} 28. Bxh6+ {[%clk 0:02:24.2]} 28... Kg8 {[%clk 0:02:40.8]} 29.
Bxf8 {[%clk 0:02:21.2]} 29... Bg7 {[%clk 0:02:37.7]} 30. Bxg7 {[%clk 0:02:11.8]}
30... Kxg7 {[%clk 0:02:36]} 31. Re7+ {[%clk 0:02:09.4]} 31... Kf8 {[%clk
0:02:33.5]} 32. Qf7# {[%clk 0:02:08]} 1-0

[Event "Live Chess"]
[Site "Chess.com"]
[Date "2023.05.21"]
[Round "-"]
[White "NatashaRegan"]
[Black "GEMdzq"]
[Result "0-1"]
[WhiteElo "1715"]
[BlackElo "2226"]
[TimeControl "300"]
[EndTime "8:25:53 PDT"]
[Termination "GEMdzq won on time"]

1. e4 {[%clk 0:04:56.4]} 1... d6 {[%clk 0:04:58.8]} 2. d4 {[%clk 0:04:54.1]}
2... Nf6 {[%clk 0:04:58.2]} 3. Nc3 {[%clk 0:04:52.1]} 3... g6 {[%clk 0:04:57.6]}
4. Be3 {[%clk 0:04:50.3]} 4... Bg7 {[%clk 0:04:56.6]} 5. Qd2 {[%clk 0:04:48.7]}
5... c6 {[%clk 0:04:55.8]} 6. Bh6 {[%clk 0:04:44.9]} 6... Bxh6 {[%clk
0:04:54.8]} 7. Qxh6 {[%clk 0:04:41.9]} 7... b5 {[%clk 0:04:52.7]} 8. Bd3 {[%clk
0:04:36.2]} 8... b4 {[%clk 0:04:47.9]} 9. Nce2 {[%clk 0:04:33.7]} 9... Qa5
{[%clk 0:04:45.3]} 10. Nf3 {[%clk 0:04:26.5]} 10... Nbd7 {[%clk 0:04:26.1]} 11.
Ng5 {[%clk 0:04:17.1]} 11... Bb7 {[%clk 0:03:49.2]} 12. O-O {[%clk 0:03:33.5]}
12... O-O-O {[%clk 0:03:06.3]} 13. Nxf7 {[%clk 0:03:28.4]} 13... Rhf8 {[%clk
0:02:54.5]} 14. Nxd8 {[%clk 0:03:25.3]} 14... Rxd8 {[%clk 0:02:54.2]} 15. c3
{[%clk 0:03:17.2]} 15... c5 {[%clk 0:02:20.9]} 16. cxb4 {[%clk 0:03:11.5]} 16...
Qxb4 {[%clk 0:02:19.4]} 17. Rfc1 {[%clk 0:03:05.6]} 17... Kb8 {[%clk 0:02:17.9]}
18. Rc4 {[%clk 0:02:57.3]} 18... Qb6 {[%clk 0:02:08]} 19. d5 {[%clk 0:02:38.1]}
19... Ne5 {[%clk 0:02:05.1]} 20. Rc3 {[%clk 0:02:31]} 20... c4 {[%clk
0:01:26.5]} 21. Bc2 {[%clk 0:02:19.8]} 21... Nfg4 {[%clk 0:01:13.9]} 22. Qf4
{[%clk 0:02:13]} 22... g5 {[%clk 0:01:12.9]} 23. Qf5 {[%clk 0:02:06]} 23... Bc8
{[%clk 0:01:10.6]} 24. Qxg5 {[%clk 0:01:36.4]} 24... Qxf2+ {[%clk 0:01:09.6]}
25. Kh1 {[%clk 0:01:34.2]} 25... Qxe2 {[%clk 0:01:09]} 26. Qxe7 {[%clk
0:01:21.9]} 26... Rd7 {[%clk 0:00:58.4]} 27. Qf8 {[%clk 0:01:11.3]} 27... Nf2+
{[%clk 0:00:48.9]} 28. Kg1 {[%clk 0:01:07.1]} 28... Nxe4 {[%clk 0:00:48.3]} 29.
Bxe4 {[%clk 0:01:04.2]} 29... Qxe4 {[%clk 0:00:47]} 30. Rac1 {[%clk 0:00:57.3]}
30... Qxd5 {[%clk 0:00:42.8]} 31. b3 {[%clk 0:00:49.1]} 31... Qd4+ {[%clk
0:00:42.2]} 32. Kh1 {[%clk 0:00:47.1]} 32... Rf7 {[%clk 0:00:26.5]} 33. Qd8
{[%clk 0:00:34.5]} 33... Ng4 {[%clk 0:00:23.2]} 34. h3 {[%clk 0:00:22]} 34...
Nf2+ {[%clk 0:00:19.5]} 35. Kh2 {[%clk 0:00:18.2]} 35... Qf4+ {[%clk 0:00:18.4]}
36. Kg1 {[%clk 0:00:16.6]} 36... Nd3 {[%clk 0:00:14.6]} 37. Rxc4 {[%clk
0:00:14.1]} 37... Qf2+ {[%clk 0:00:13.4]} 38. Kh2 {[%clk 0:00:12]} 38... Nc5
{[%clk 0:00:12.7]} 39. Rxc5 {[%clk 0:00:10.1]} 39... dxc5 {[%clk 0:00:11.5]} 40.
Rc4 {[%clk 0:00:07.4]} 40... Qe3 {[%clk 0:00:09.2]} 41. Qd6+ {[%clk 0:00:05.2]}
41... Kb7 {[%clk 0:00:07.8]} 42. Qd5+ {[%clk 0:00:03.7]} 42... Kb8 {[%clk
0:00:05.9]} 43. Qxf7 {[%clk 0:00:02.7]} 43... Qe5+ {[%clk 0:00:04.4]} 44. Qf4
{[%clk 0:00:01.6]} 44... Qxf4+ {[%clk 0:00:03.2]} 45. Rxf4 {[%clk 0:00:01.4]}
45... a5 {[%clk 0:00:02.9]} 46. Kg3 {[%clk 0:00:00.5]} 46... a4 {[%clk
0:00:02.8]} 0-1

[Event "Live Chess"]
[Site "Chess.com"]
[Date "2023.05.21"]
[Round "-"]
[White "worldchessleaguelive"]
[Black "f4nomore"]
[Result "1-0"]
[WhiteElo "1378"]
[BlackElo "1384"]
[TimeControl "300"]
[EndTime "8:25:54 PDT"]
[Termination "worldchessleaguelive won on time"]

1. d4 {[%clk 0:04:59.1]} 1... g6 {[%clk 0:04:59.9]} 2. Bf4 {[%clk 0:04:57.3]}
2... Bg7 {[%clk 0:04:59.8]} 3. Nf3 {[%clk 0:04:55.8]} 3... d6 {[%clk 0:04:59.7]}
4. e3 {[%clk 0:04:53.3]} 4... Nf6 {[%clk 0:04:59.6]} 5. Be2 {[%clk 0:04:52.3]}
5... O-O {[%clk 0:04:58.4]} 6. O-O {[%clk 0:04:51.1]} 6... Nbd7 {[%clk
0:04:57.3]} 7. Nbd2 {[%clk 0:04:49.5]} 7... b6 {[%clk 0:04:56.5]} 8. Rc1 {[%clk
0:04:48.6]} 8... Bb7 {[%clk 0:04:55.3]} 9. c4 {[%clk 0:04:47]} 9... c5 {[%clk
0:04:54]} 10. d5 {[%clk 0:04:46.1]} 10... Nh5 {[%clk 0:04:48.8]} 11. Bg3 {[%clk
0:04:45.1]} 11... Nxg3 {[%clk 0:04:45.7]} 12. hxg3 {[%clk 0:04:42.7]} 12... Bxb2
{[%clk 0:04:43.4]} 13. Rc2 {[%clk 0:04:42]} 13... Bg7 {[%clk 0:04:41.5]} 14. Re1
{[%clk 0:04:38.7]} 14... Nf6 {[%clk 0:04:39.5]} 15. e4 {[%clk 0:04:36.8]} 15...
e6 {[%clk 0:04:37.7]} 16. Nf1 {[%clk 0:04:28.2]} 16... exd5 {[%clk 0:04:35.8]}
17. exd5 {[%clk 0:04:26.5]} 17... a6 {[%clk 0:04:30.7]} 18. Bd3 {[%clk
0:04:24.2]} 18... Bc8 {[%clk 0:04:28.3]} 19. Rce2 {[%clk 0:04:23]} 19... Bg4
{[%clk 0:04:22.1]} 20. N1h2 {[%clk 0:04:17.9]} 20... Qc8 {[%clk 0:04:04.6]} 21.
Nxg4 {[%clk 0:04:08.5]} 21... Qxg4 {[%clk 0:03:52.6]} 22. Re7 {[%clk 0:04:07.9]}
22... Rae8 {[%clk 0:03:38]} 23. Rxe8 {[%clk 0:04:05.6]} 23... Nxe8 {[%clk
0:03:35.6]} 24. Qa4 {[%clk 0:04:00.1]} 24... Nc7 {[%clk 0:03:28.5]} 25. Qc6
{[%clk 0:03:55]} 25... Na8 {[%clk 0:03:24.1]} 26. Qxd6 {[%clk 0:03:48.6]} 26...
a5 {[%clk 0:02:58.6]} 27. Ne5 {[%clk 0:03:42.5]} 27... Qd4 {[%clk 0:02:34.8]}
28. Bf1 {[%clk 0:03:35.6]} 28... Qc3 {[%clk 0:02:29.8]} 29. Nd7 {[%clk
0:03:27.2]} 29... Qxe1 {[%clk 0:02:23.2]} 30. Nxf8 {[%clk 0:03:22]} 30... Bxf8
{[%clk 0:02:20.5]} 31. Qc6 {[%clk 0:03:14.6]} 31... Qd2 {[%clk 0:02:04.3]} 32.
a4 {[%clk 0:02:57.8]} 32... Qb4 {[%clk 0:01:53.2]} 33. d6 {[%clk 0:02:43.6]}
33... Qd2 {[%clk 0:01:40.7]} 34. d7 {[%clk 0:02:33.2]} 34... Kg7 {[%clk
0:01:27.4]} 35. Qd5 {[%clk 0:02:29.5]} 35... Qxd5 {[%clk 0:01:02.9]} 36. cxd5
{[%clk 0:02:27.7]} 36... Be7 {[%clk 0:01:01.3]} 37. d6 {[%clk 0:02:26.9]} 37...
Bd8 {[%clk 0:00:59.7]} 38. Bb5 {[%clk 0:02:24.2]} 38... Kf6 {[%clk 0:00:55.4]}
39. Bc6 {[%clk 0:02:23]} 39... Ke6 {[%clk 0:00:52.9]} 40. Bxa8 {[%clk 0:02:10]}
40... Kxd7 {[%clk 0:00:49.5]} 41. Bd5 {[%clk 0:02:08]} 41... Kxd6 {[%clk
0:00:46.3]} 42. Bxf7 {[%clk 0:02:06.9]} 42... Ke5 {[%clk 0:00:43]} 43. Kf1
{[%clk 0:02:05.7]} 43... Kd4 {[%clk 0:00:40.1]} 44. Ke2 {[%clk 0:02:03.3]} 44...
c4 {[%clk 0:00:38.5]} 45. Kd2 {[%clk 0:02:02]} 45... c3+ {[%clk 0:00:35.9]} 46.
Kc2 {[%clk 0:02:00.7]} 46... Be7 {[%clk 0:00:31.8]} 47. Bg8 {[%clk 0:01:56.9]}
47... h6 {[%clk 0:00:29.5]} 48. Bh7 {[%clk 0:01:55.4]} 48... g5 {[%clk
0:00:27.4]} 49. f4 {[%clk 0:01:51.9]} 49... gxf4 {[%clk 0:00:23.6]} 50. gxf4
{[%clk 0:01:50.6]} 50... Bf6 {[%clk 0:00:18.3]} 51. g4 {[%clk 0:01:45.8]} 51...
Ke3 {[%clk 0:00:15.1]} 52. f5 {[%clk 0:01:43.4]} 52... Kf4 {[%clk 0:00:12.5]}
53. Bg6 {[%clk 0:01:39.2]} 53... Kxg4 {[%clk 0:00:08.7]} 54. Kd3 {[%clk
0:01:38.5]} 54... h5 {[%clk 0:00:05.2]} 55. Kc2 {[%clk 0:01:35.8]} 55... h4
{[%clk 0:00:03.9]} 56. Be8 {[%clk 0:01:34.3]} 1-0

[Event "Live Chess"]
[Site "Chess.com"]
[Date "2023.05.21"]
[Round "-"]
[White "DRS44"]
[Black "TheSmoulderingMaster"]
[Result "0-1"]
[WhiteElo "1237"]
[BlackElo "1663"]
[TimeControl "300"]
[EndTime "8:25:55 PDT"]
[Termination "TheSmoulderingMaster won on time"]

1. d4 {[%clk 0:04:47.9]} 1... Nf6 {[%clk 0:04:58.7]} 2. c4 {[%clk 0:04:44.2]}
2... g6 {[%clk 0:04:57.7]} 3. Nc3 {[%clk 0:04:39.7]} 3... Bg7 {[%clk 0:04:56.6]}
4. e4 {[%clk 0:04:29.7]} 4... d6 {[%clk 0:04:55.6]} 5. Nf3 {[%clk 0:04:19.7]}
5... O-O {[%clk 0:04:54.6]} 6. e5 {[%clk 0:04:15.6]} 6... Nfd7 {[%clk
0:04:50.5]} 7. Bg5 {[%clk 0:04:07.9]} 7... dxe5 {[%clk 0:04:46.4]} 8. dxe5
{[%clk 0:04:03.5]} 8... Nxe5 {[%clk 0:04:42.1]} 9. Nxe5 {[%clk 0:03:58]} 9...
Qxd1+ {[%clk 0:04:39.5]} 10. Rxd1 {[%clk 0:03:51.6]} 10... Bxe5 {[%clk
0:04:38.7]} 11. Be2 {[%clk 0:03:44.9]} 11... Bxc3+ {[%clk 0:04:37.1]} 12. bxc3
{[%clk 0:03:38.2]} 12... e6 {[%clk 0:04:36.5]} 13. O-O {[%clk 0:03:33.1]} 13...
Nc6 {[%clk 0:04:35]} 14. Bf3 {[%clk 0:03:14.5]} 14... e5 {[%clk 0:04:31.1]} 15.
Rd2 {[%clk 0:02:44.2]} 15... Be6 {[%clk 0:04:27]} 16. Bd5 {[%clk 0:02:35.6]}
16... Bxd5 {[%clk 0:04:21.2]} 17. cxd5 {[%clk 0:02:22.7]} 17... Na5 {[%clk
0:04:19.5]} 18. d6 {[%clk 0:02:06.4]} 18... Nc4 {[%clk 0:04:14.6]} 19. Rd5
{[%clk 0:02:00.4]} 19... Nxd6 {[%clk 0:04:12.7]} 20. Be7 {[%clk 0:01:49.4]}
20... Rfe8 {[%clk 0:04:06.6]} 21. Bxd6 {[%clk 0:01:42.3]} 21... cxd6 {[%clk
0:04:05.8]} 22. Rxd6 {[%clk 0:01:38.8]} 22... Rac8 {[%clk 0:04:04.7]} 23. Rd3
{[%clk 0:01:29.1]} 23... Rc4 {[%clk 0:04:02]} 24. Rfd1 {[%clk 0:01:19.9]} 24...
Kg7 {[%clk 0:03:59.2]} 25. Rd7 {[%clk 0:01:12.8]} 25... Rxc3 {[%clk 0:03:52.3]}
26. Rxb7 {[%clk 0:01:07.3]} 26... Ra3 {[%clk 0:03:50.6]} 27. h3 {[%clk 0:00:59]}
27... Rxa2 {[%clk 0:03:44.5]} 28. Rdd7 {[%clk 0:00:52.7]} 28... Rf8 {[%clk
0:03:42.4]} 29. g4 {[%clk 0:00:47.1]} 29... a5 {[%clk 0:03:40.2]} 30. Kg2 {[%clk
0:00:42.4]} 30... a4 {[%clk 0:03:38.4]} 31. Kg3 {[%clk 0:00:36.6]} 31... a3
{[%clk 0:03:37.4]} 32. Ra7 {[%clk 0:00:30]} 32... Ra1 {[%clk 0:03:36.1]} 33. Rd3
{[%clk 0:00:22.3]} 33... a2 {[%clk 0:03:34.8]} 34. Rda3 {[%clk 0:00:14.2]} 34...
Rg1+ {[%clk 0:03:33]} 35. Kh2 {[%clk 0:00:06.6]} 35... a1=Q {[%clk 0:03:21.5]}
36. Rxa1 {[%clk 0:00:00.8]} 36... Rxa1 {[%clk 0:03:20.2]} 0-1

[Event "Live Chess"]
[Site "Chess.com"]
[Date "2023.05.21"]
[Round "-"]
[White "ShanthamGrarks"]
[Black "wot-not"]
[Result "1/2-1/2"]
[WhiteElo "1944"]
[BlackElo "1519"]
[TimeControl "300"]
[EndTime "8:25:58 PDT"]
[Termination "Game drawn - insufficient material"]

1. d4 {[%clk 0:04:55.2]} 1... Nf6 {[%clk 0:04:58.7]} 2. Nc3 {[%clk 0:04:54.6]}
2... c5 {[%clk 0:04:57.9]} 3. e4 {[%clk 0:04:54.2]} 3... cxd4 {[%clk 0:04:57.1]}
4. Qxd4 {[%clk 0:04:53.6]} 4... Nc6 {[%clk 0:04:56.4]} 5. Qd1 {[%clk 0:04:52.8]}
5... e5 {[%clk 0:04:56.1]} 6. f4 {[%clk 0:04:51.7]} 6... Bb4 {[%clk 0:04:55.8]}
7. fxe5 {[%clk 0:04:49.9]} 7... Nxe4 {[%clk 0:04:52.7]} 8. Bd2 {[%clk
0:04:44.5]} 8... Nxd2 {[%clk 0:04:50.9]} 9. Qxd2 {[%clk 0:04:43.3]} 9... O-O
{[%clk 0:04:48.2]} 10. Nf3 {[%clk 0:04:38.3]} 10... Nxe5 {[%clk 0:04:41.3]} 11.
Nxe5 {[%clk 0:04:33.9]} 11... Re8 {[%clk 0:04:40.6]} 12. Qf4 {[%clk 0:04:23.3]}
12... Bxc3+ {[%clk 0:04:32.3]} 13. bxc3 {[%clk 0:04:16.3]} 13... Qe7 {[%clk
0:04:22.1]} 14. O-O-O {[%clk 0:04:11]} 14... Qxe5 {[%clk 0:04:20.2]} 15. Qf3
{[%clk 0:04:03.9]} 15... Qe3+ {[%clk 0:04:16.9]} 16. Kb2 {[%clk 0:04:00.5]}
16... Qxf3 {[%clk 0:04:15.5]} 17. gxf3 {[%clk 0:04:00.2]} 17... Re6 {[%clk
0:03:59]} 18. Bh3 {[%clk 0:03:58.3]} 18... Rb6+ {[%clk 0:03:57.5]} 19. Kc1
{[%clk 0:03:57.6]} 19... d6 {[%clk 0:03:56.6]} 20. Bxc8 {[%clk 0:03:50.3]} 20...
Rxc8 {[%clk 0:03:55.4]} 21. Rd3 {[%clk 0:03:49.1]} 21... Rbc6 {[%clk 0:03:54.3]}
22. Kd2 {[%clk 0:03:47.9]} 22... Kf8 {[%clk 0:03:50.2]} 23. Re1 {[%clk
0:03:47.5]} 23... b5 {[%clk 0:03:46.2]} 24. a3 {[%clk 0:03:45.4]} 24... a5
{[%clk 0:03:44.9]} 25. Re4 {[%clk 0:03:44]} 25... f5 {[%clk 0:03:37.2]} 26. Re6
{[%clk 0:03:36.6]} 26... b4 {[%clk 0:03:25.1]} 27. axb4 {[%clk 0:03:31.7]} 27...
axb4 {[%clk 0:03:24.1]} 28. Rexd6 {[%clk 0:03:26.9]} 28... bxc3+ {[%clk
0:03:23.3]} 29. Ke2 {[%clk 0:03:22.9]} 29... Rxd6 {[%clk 0:03:21.2]} 30. Rxd6
{[%clk 0:03:21.9]} 30... Ke7 {[%clk 0:03:16.9]} 31. Rb6 {[%clk 0:03:18.2]} 31...
Kf7 {[%clk 0:03:11.3]} 32. Kd3 {[%clk 0:03:13.9]} 32... Re8 {[%clk 0:02:59.7]}
33. Rb7+ {[%clk 0:03:08.7]} 33... Kg6 {[%clk 0:02:58.4]} 34. h4 {[%clk
0:02:59.8]} 34... f4 {[%clk 0:02:52.7]} 35. Rb5 {[%clk 0:02:49]} 35... Re3+
{[%clk 0:02:49.7]} 36. Kd4 {[%clk 0:02:43.2]} 36... Rxf3 {[%clk 0:02:47.2]} 37.
h5+ {[%clk 0:02:42]} 37... Kh6 {[%clk 0:02:42.2]} 38. Ke4 {[%clk 0:02:41.4]}
38... Rf2 {[%clk 0:02:40.5]} 39. Kd3 {[%clk 0:02:32.3]} 39... f3 {[%clk
0:02:28.7]} 40. Ke3 {[%clk 0:02:29.8]} 40... Rxc2 {[%clk 0:02:25.3]} 41. Kxf3
{[%clk 0:02:29.3]} 41... Rh2 {[%clk 0:02:23.4]} 42. Rb6+ {[%clk 0:02:18.2]}
42... g6 {[%clk 0:02:21.9]} 43. hxg6 {[%clk 0:02:14.6]} 43... hxg6 {[%clk
0:02:21.2]} 44. Rc6 {[%clk 0:02:13.3]} 44... c2 {[%clk 0:02:20.5]} 45. Kg3
{[%clk 0:02:12]} 45... Rd2 {[%clk 0:02:16.6]} 46. Kf3 {[%clk 0:02:11.1]} 46...
Kh5 {[%clk 0:02:14.4]} 47. Ke3 {[%clk 0:02:10.6]} 47... Rh2 {[%clk 0:02:10.9]}
48. Kf3 {[%clk 0:02:09.7]} 48... g5 {[%clk 0:02:09.9]} 49. Kg3 {[%clk
0:02:05.6]} 49... Rd2 {[%clk 0:02:08.3]} 50. Kf3 {[%clk 0:02:04.4]} 50... g4+
{[%clk 0:02:02.4]} 51. Kg3 {[%clk 0:02:02.5]} 51... Re2 {[%clk 0:01:53.9]} 52.
Rc5+ {[%clk 0:01:59.8]} 52... Kg6 {[%clk 0:01:49.5]} 53. Kxg4 {[%clk 0:01:59]}
53... Rg2+ {[%clk 0:01:44.7]} 54. Kf3 {[%clk 0:01:57.6]} 54... Rh2 {[%clk
0:01:39.8]} 55. Ke3 {[%clk 0:01:56]} 55... Rh3+ {[%clk 0:01:36.6]} 56. Kd2
{[%clk 0:01:53.2]} 56... Rh2+ {[%clk 0:01:35.8]} 57. Kd3 {[%clk 0:01:51.8]}
57... Kf6 {[%clk 0:01:35.1]} 58. Rxc2 {[%clk 0:01:47.9]} 58... Rxc2 {[%clk
0:01:33.2]} 59. Kxc2 {[%clk 0:01:47]} 1/2-1/2